[Event "*** Titled Tuesday Blitz"]
[Site "Chess.com"]
[Date "2018.06.05"]
[Round "1"]
[White "Nyzhnyk_Illia"]
[Black "andrewtnb"]
[Result "1-0"]
[WhiteElo "2717"]
[BlackElo "2371"]
[TimeControl "180+2"]
[EndTime "13:08:16 PDT"]
[Termination "Nyzhnyk_Illia won by resignation"]

1. Nf3 {[%clk 0:03:01.9]} 1... d5 {[%clk 0:03:00]} 2. g3 {[%clk 0:03:02.7]} 2...
Nf6 {[%clk 0:03:01.5]} 3. Bg2 {[%clk 0:03:04.2]} 3... c6 {[%clk 0:03:02.9]} 4.
O-O {[%clk 0:03:05.7]} 4... Bg4 {[%clk 0:03:03.7]} 5. b3 {[%clk 0:03:06.6]} 5...
e6 {[%clk 0:03:03.8]} 6. Bb2 {[%clk 0:03:07.9]} 6... Be7 {[%clk 0:03:04.8]} 7.
d3 {[%clk 0:03:08.8]} 7... O-O {[%clk 0:03:05.4]} 8. c4 {[%clk 0:03:10.2]} 8...
Nbd7 {[%clk 0:03:05.4]} 9. Nbd2 {[%clk 0:03:11.4]} 9... Bh5 {[%clk 0:03:04.7]}
10. a3 {[%clk 0:03:11.8]} 10... a5 {[%clk 0:03:03.8]} 11. Ra2 {[%clk 0:03:12.7]}
11... b5 {[%clk 0:03:00.9]} 12. Qa1 {[%clk 0:03:13.8]} 12... Bxf3 {[%clk
0:02:57]} 13. Bxf3 {[%clk 0:03:11.9]} 13... bxc4 {[%clk 0:02:57.6]} 14. bxc4
{[%clk 0:03:12.4]} 14... Ne8 {[%clk 0:02:53.9]} 15. Rc1 {[%clk 0:03:10.9]} 15...
Bf6 {[%clk 0:02:54.1]} 16. Bxf6 {[%clk 0:03:11.9]} 16... Nexf6 {[%clk
0:02:54.9]} 17. Rb2 {[%clk 0:03:12.7]} 17... Rb8 {[%clk 0:02:54]} 18. Nb3 {[%clk
0:03:03.3]} 18... Qb6 {[%clk 0:02:33.6]} 19. Rbb1 {[%clk 0:02:55.3]} 19... Qa7
{[%clk 0:02:23.5]} 20. cxd5 {[%clk 0:02:38.8]} 20... cxd5 {[%clk 0:02:23.2]} 21.
Qd4 {[%clk 0:02:40.5]} 21... Qa6 {[%clk 0:02:13.2]} 22. Nc5 {[%clk 0:02:21.8]}
22... Nxc5 {[%clk 0:02:11.7]} 23. Qxc5 {[%clk 0:02:23.7]} 23... Rxb1 {[%clk
0:02:09.2]} 24. Rxb1 {[%clk 0:02:24.8]} 24... Rc8 {[%clk 0:02:02.5]} 25. Rb6
{[%clk 0:02:24.5]} 25... Rxc5 {[%clk 0:01:55.5]} 26. Rxa6 {[%clk 0:02:25.3]}
26... g5 {[%clk 0:01:55.8]} 27. h3 {[%clk 0:02:11.1]} 27... Kg7 {[%clk
0:01:35.9]} 28. a4 {[%clk 0:02:10.7]} 28... e5 {[%clk 0:01:27.1]} 29. e3 {[%clk
0:02:08.5]} 29... e4 {[%clk 0:01:24.1]} 30. Be2 {[%clk 0:02:02.2]} 30... exd3
{[%clk 0:00:55.3]} 31. Bxd3 {[%clk 0:02:02.9]} 31... Ne4 {[%clk 0:00:55.7]} 32.
Kg2 {[%clk 0:01:47.8]} 32... h6 {[%clk 0:00:52.5]} 33. Kf3 {[%clk 0:01:40.8]}
33... Nc3 {[%clk 0:00:51.3]} 34. Bc2 {[%clk 0:01:39.8]} 34... Na2 {[%clk
0:00:50.1]} 35. Bb3 {[%clk 0:01:27.7]} 35... Nc1 {[%clk 0:00:50.1]} 36. Bd1
{[%clk 0:01:26]} 36... Nd3 {[%clk 0:00:51.1]} 37. Ke2 {[%clk 0:01:07.8]} 37...
Nb2 {[%clk 0:00:48.4]} 38. Bb3 {[%clk 0:01:08.4]} 38... Nc4 {[%clk 0:00:46.2]}
39. Bxc4 {[%clk 0:01:01.7]} 39... dxc4 {[%clk 0:00:46.1]} 40. Kd2 {[%clk
0:01:03.2]} 40... c3+ {[%clk 0:00:44.5]} 41. Kc2 {[%clk 0:01:04.5]} 41... f5
{[%clk 0:00:43.6]} 42. f4 {[%clk 0:01:01.6]} 42... gxf4 {[%clk 0:00:42.6]} 43.
gxf4 {[%clk 0:01:02.5]} 43... h5 {[%clk 0:00:31.9]} 44. h4 {[%clk 0:01:03]}
44... Kh7 {[%clk 0:00:30.8]} 45. Re6 {[%clk 0:01:02]} 45... Rc4 {[%clk
0:00:29.7]} 46. Re5 {[%clk 0:01:03.6]} 46... Rxa4 {[%clk 0:00:29.5]} 47. Rxf5
{[%clk 0:01:05.1]} 47... Re4 {[%clk 0:00:30]} 48. Kd3 {[%clk 0:01:00]} 48... Rc4
{[%clk 0:00:18.3]} 49. Rxh5+ {[%clk 0:01:01]} 49... Kg6 {[%clk 0:00:19.2]} 50.
Rg5+ {[%clk 0:01:02.6]} 50... Kf6 {[%clk 0:00:20.3]} 51. Kxc4 {[%clk 0:01:04.5]}
1-0

[Event "*** Titled Tuesday Blitz"]
[Site "Chess.com"]
[Date "2018.06.05"]
[Round "1"]
[White "SergeiAza"]
[Black "Litti"]
[Result "1-0"]
[WhiteElo "2624"]
[BlackElo "2299"]
[TimeControl "180+2"]
[EndTime "13:08:18 PDT"]
[Termination "SergeiAza won by resignation"]

1. e4 {[%clk 0:03:01.8]} 1... c5 {[%clk 0:03:00.9]} 2. Nf3 {[%clk 0:03:02.8]}
2... e6 {[%clk 0:03:01.9]} 3. d4 {[%clk 0:03:04.2]} 3... cxd4 {[%clk 0:03:03.3]}
4. Nxd4 {[%clk 0:03:05.6]} 4... Nf6 {[%clk 0:03:04.1]} 5. Nc3 {[%clk 0:03:05.7]}
5... Nc6 {[%clk 0:03:04.9]} 6. Ndb5 {[%clk 0:03:03.9]} 6... Bb4 {[%clk
0:03:04.7]} 7. a3 {[%clk 0:03:04.4]} 7... Bxc3+ {[%clk 0:03:05.3]} 8. Nxc3
{[%clk 0:03:05.9]} 8... d5 {[%clk 0:03:06.2]} 9. Bd3 {[%clk 0:03:06.9]} 9...
dxe4 {[%clk 0:03:04.3]} 10. Nxe4 {[%clk 0:03:07.3]} 10... Nxe4 {[%clk
0:03:05.6]} 11. Bxe4 {[%clk 0:03:08.9]} 11... Qxd1+ {[%clk 0:03:06.8]} 12. Kxd1
{[%clk 0:03:09.4]} 12... Bd7 {[%clk 0:03:06.5]} 13. c3 {[%clk 0:03:02.1]} 13...
O-O-O {[%clk 0:03:06.4]} 14. Kc2 {[%clk 0:03:02.7]} 14... f5 {[%clk 0:02:57.1]}
15. Bf3 {[%clk 0:02:59.4]} 15... e5 {[%clk 0:02:54.7]} 16. Bg5 {[%clk
0:02:48.2]} 16... Rde8 {[%clk 0:02:53.9]} 17. Bd2 {[%clk 0:02:20.8]} 17... e4
{[%clk 0:02:49.4]} 18. Be2 {[%clk 0:02:20.4]} 18... Ne5 {[%clk 0:02:49.1]} 19.
Be3 {[%clk 0:02:13.7]} 19... a6 {[%clk 0:02:45.4]} 20. a4 {[%clk 0:02:08.9]}
20... Be6 {[%clk 0:02:31.7]} 21. b3 {[%clk 0:01:48.4]} 21... Rhf8 {[%clk
0:02:20.9]} 22. g3 {[%clk 0:01:42.3]} 22... Rf7 {[%clk 0:02:10.2]} 23. Rhd1
{[%clk 0:01:39.1]} 23... Rd7 {[%clk 0:02:08.9]} 24. Rxd7 {[%clk 0:01:37.4]}
24... Bxd7 {[%clk 0:02:10.8]} 25. c4 {[%clk 0:01:35]} 25... Be6 {[%clk
0:01:55.8]} 26. Rd1 {[%clk 0:01:32.2]} 26... g6 {[%clk 0:01:44]} 27. Kc3 {[%clk
0:01:28.6]} 27... Rd8 {[%clk 0:01:39.5]} 28. Rxd8+ {[%clk 0:01:26.2]} 28... Kxd8
{[%clk 0:01:41.4]} 29. h4 {[%clk 0:01:21.7]} 29... Kd7 {[%clk 0:01:30.5]} 30. b4
{[%clk 0:01:11.6]} 30... Nc6 {[%clk 0:00:57.1]} 31. b5 {[%clk 0:01:08.2]} 31...
Nd8 {[%clk 0:00:21.2]} 32. c5 {[%clk 0:01:04.7]} 32... axb5 {[%clk 0:00:21.2]}
33. axb5 {[%clk 0:01:06.2]} 33... Ba2 {[%clk 0:00:17.7]} 34. Kb4 {[%clk
0:00:58.1]} 34... Ne6 {[%clk 0:00:18.1]} 35. Ka5 {[%clk 0:00:55.6]} 35... Kc8
{[%clk 0:00:17.2]} 36. Kb6 {[%clk 0:00:46.2]} 36... Bd5 {[%clk 0:00:17.3]} 37.
c6 {[%clk 0:00:42.9]} 37... bxc6 {[%clk 0:00:19.2]} 38. bxc6 {[%clk 0:00:44.4]}
38... Nd8 {[%clk 0:00:20.3]} 39. Ba6+ {[%clk 0:00:44.3]} 1-0

[Event "*** Titled Tuesday Blitz"]
[Site "Chess.com"]
[Date "2018.06.05"]
[Round "1"]
[White "Man-Chuk"]
[Black "The_Unbeatable_One"]
[Result "0-1"]
[WhiteElo "2606"]
[BlackElo "2577"]
[TimeControl "180+2"]
[EndTime "13:08:20 PDT"]
[Termination "The_Unbeatable_One won by checkmate"]

1. e4 {[%clk 0:03:00.2]} 1... e5 {[%clk 0:02:55.8]} 2. Nf3 {[%clk 0:02:58.5]}
2... Nc6 {[%clk 0:02:55.3]} 3. Bc4 {[%clk 0:02:57.6]} 3... Bc5 {[%clk
0:02:55.3]} 4. c3 {[%clk 0:02:54.2]} 4... Nf6 {[%clk 0:02:55.5]} 5. d3 {[%clk
0:02:55.5]} 5... d6 {[%clk 0:02:56.4]} 6. a4 {[%clk 0:02:53.1]} 6... a6 {[%clk
0:02:55.3]} 7. O-O {[%clk 0:02:49.9]} 7... O-O {[%clk 0:02:51.8]} 8. Bg5 {[%clk
0:02:48.2]} 8... h6 {[%clk 0:02:49.3]} 9. Bh4 {[%clk 0:02:49]} 9... Bg4 {[%clk
0:02:42.3]} 10. h3 {[%clk 0:02:36.2]} 10... Bh5 {[%clk 0:02:22.4]} 11. Nbd2
{[%clk 0:02:35.6]} 11... Ba7 {[%clk 0:02:21.7]} 12. a5 {[%clk 0:02:31.3]} 12...
Qe7 {[%clk 0:02:22]} 13. b4 {[%clk 0:02:17]} 13... g5 {[%clk 0:02:18.7]} 14. Bg3
{[%clk 0:02:17.2]} 14... Bg6 {[%clk 0:02:18.8]} 15. Qb3 {[%clk 0:01:55.9]} 15...
Nh5 {[%clk 0:02:16.4]} 16. Kh1 {[%clk 0:01:41.1]} 16... Nd8 {[%clk 0:02:13.3]}
17. b5 {[%clk 0:01:36.9]} 17... axb5 {[%clk 0:02:13.7]} 18. Qxb5 {[%clk
0:01:37.9]} 18... c6 {[%clk 0:02:14.4]} 19. Qb3 {[%clk 0:01:31.1]} 19... Ne6
{[%clk 0:02:04.7]} 20. Bxe6 {[%clk 0:01:30.8]} 20... fxe6 {[%clk 0:01:59.2]} 21.
Rab1 {[%clk 0:01:18.8]} 21... Rab8 {[%clk 0:01:58]} 22. Nc4 {[%clk 0:01:15.3]}
22... Nf4 {[%clk 0:01:49.3]} 23. Bxf4 {[%clk 0:01:12.5]} 23... Rxf4 {[%clk
0:01:46.8]} 24. Ne3 {[%clk 0:00:27]} 24... h5 {[%clk 0:01:43.9]} 25. Nxg5 {[%clk
0:00:20.8]} 25... Qxg5 {[%clk 0:01:42.4]} 26. Qxe6+ {[%clk 0:00:21.8]} 26... Rf7
{[%clk 0:01:34.1]} 27. Qxd6 {[%clk 0:00:20.3]} 27... Rbf8 {[%clk 0:01:32.6]} 28.
Nf5 {[%clk 0:00:16.7]} 28... Bxf5 {[%clk 0:01:32.6]} 29. exf5 {[%clk 0:00:18]}
29... Qxf5 {[%clk 0:01:27.6]} 30. Rfe1 {[%clk 0:00:09.3]} 30... Bb8 {[%clk
0:01:23.9]} 31. Qb4 {[%clk 0:00:07.2]} 31... Rg7 {[%clk 0:01:23.3]} 32. Qe4
{[%clk 0:00:07.8]} 32... Qxf2 {[%clk 0:01:22.9]} 33. a6 {[%clk 0:00:04.6]} 33...
Rf4 {[%clk 0:01:16.7]} 34. Qe2 {[%clk 0:00:03.7]} 34... b5 {[%clk 0:00:47.3]}
35. Qxf2 {[%clk 0:00:04.3]} 35... Rxf2 {[%clk 0:00:48.4]} 36. d4 {[%clk
0:00:05.8]} 36... Rgxg2 {[%clk 0:00:46.6]} 37. dxe5 {[%clk 0:00:03.9]} 37...
Rh2+ {[%clk 0:00:47]} 38. Kg1 {[%clk 0:00:05.4]} 38... Ba7 {[%clk 0:00:47.7]}
39. e6 {[%clk 0:00:02.7]} 39... Rfg2+ {[%clk 0:00:48.1]} 40. Kf1 {[%clk
0:00:04.1]} 40... Rg1# {[%clk 0:00:49.4]} 0-1

[Event "*** Titled Tuesday Blitz"]
[Site "Chess.com"]
[Date "2018.06.05"]
[Round "1"]
[White "Chiinaldo"]
[Black "GM_Huschenbeth"]
[Result "1-0"]
[WhiteElo "2194"]
[BlackElo "2472"]
[TimeControl "180+2"]
[EndTime "13:08:22 PDT"]
[Termination "Chiinaldo won by resignation"]

1. d4 {[%clk 0:02:47.1]} 1... d5 {[%clk 0:03:00.5]} 2. Nf3 {[%clk 0:02:46.5]}
2... Nf6 {[%clk 0:03:01]} 3. c4 {[%clk 0:02:43.8]} 3... dxc4 {[%clk 0:03:02.9]}
4. e3 {[%clk 0:02:42.7]} 4... Bg4 {[%clk 0:03:03.9]} 5. Bxc4 {[%clk 0:02:41.8]}
5... e6 {[%clk 0:03:05.4]} 6. h3 {[%clk 0:02:39.3]} 6... Bh5 {[%clk 0:03:06.2]}
7. Nbd2 {[%clk 0:02:28.5]} 7... Bd6 {[%clk 0:03:03.8]} 8. Qb3 {[%clk 0:02:27]}
8... O-O {[%clk 0:02:56.6]} 9. Qxb7 {[%clk 0:02:25.3]} 9... Nbd7 {[%clk
0:02:58.2]} 10. Qb3 {[%clk 0:02:23.3]} 10... c5 {[%clk 0:02:58.3]} 11. O-O
{[%clk 0:02:22.6]} 11... cxd4 {[%clk 0:02:57.7]} 12. Nxd4 {[%clk 0:02:19.8]}
12... Nc5 {[%clk 0:02:58.6]} 13. Qc2 {[%clk 0:02:16]} 13... Bg6 {[%clk
0:02:58.9]} 14. Qd1 {[%clk 0:02:13.2]} 14... Rc8 {[%clk 0:02:44.8]} 15. b3
{[%clk 0:02:12.1]} 15... e5 {[%clk 0:02:43.4]} 16. N4f3 {[%clk 0:02:11.1]} 16...
Nd3 {[%clk 0:02:39.1]} 17. Nh4 {[%clk 0:01:48.9]} 17... Bh5 {[%clk 0:02:31.4]}
18. Qc2 {[%clk 0:01:29.5]} 18... e4 {[%clk 0:02:32.7]} 19. Nf5 {[%clk 0:01:26]}
19... Be5 {[%clk 0:02:32.2]} 20. Ba3 {[%clk 0:01:16.9]} 20... Re8 {[%clk
0:02:06.9]} 21. Rab1 {[%clk 0:01:03.9]} 21... Be2 {[%clk 0:01:59.8]} 22. Nxe4
{[%clk 0:00:53.4]} 22... Bxf1 {[%clk 0:01:59]} 23. Ned6 {[%clk 0:00:42.9]} 23...
Bxd6 {[%clk 0:00:47.1]} 24. Nxd6 {[%clk 0:00:41.9]} 24... Qa5 {[%clk 0:00:21.6]}
25. Nxe8 {[%clk 0:00:38.5]} 25... Rxe8 {[%clk 0:00:19.8]} 26. Rxf1 {[%clk
0:00:37.3]} 26... Qxa3 {[%clk 0:00:18.7]} 27. Bxd3 {[%clk 0:00:37.9]} 27... Nd5
{[%clk 0:00:15.6]} 28. Bxh7+ {[%clk 0:00:37.1]} 28... Kh8 {[%clk 0:00:16.9]} 29.
Bd3 {[%clk 0:00:35.3]} 29... Nb4 {[%clk 0:00:16.1]} 30. Qc4 {[%clk 0:00:32.4]}
30... Nxd3 {[%clk 0:00:17.4]} 31. Qxd3 {[%clk 0:00:32.1]} 31... Qxa2 {[%clk
0:00:19.3]} 32. Qd7 {[%clk 0:00:30.9]} 32... Rf8 {[%clk 0:00:16.1]} 33. Qd5
{[%clk 0:00:28.4]} 33... Kg8 {[%clk 0:00:16.6]} 34. g3 {[%clk 0:00:28.1]} 34...
Rb8 {[%clk 0:00:15]} 35. Rc1 {[%clk 0:00:25.7]} 35... Qxb3 {[%clk 0:00:14.5]}
36. Rc8+ {[%clk 0:00:25.9]} 1-0

[Event "*** Titled Tuesday Blitz"]
[Site "Chess.com"]
[Date "2018.06.05"]
[Round "1"]
[White "biostatistician"]
[Black "gemarin"]
[Result "1-0"]
[WhiteElo "2429"]
[BlackElo "1814"]
[TimeControl "180+2"]
[EndTime "13:08:31 PDT"]
[Termination "biostatistician won on time"]

1. d4 {[%clk 0:03:01.9]} 1... d5 {[%clk 0:02:45]} 2. Nf3 {[%clk 0:03:03.8]} 2...
c6 {[%clk 0:02:45.9]} 3. c4 {[%clk 0:03:05.7]} 3... Nf6 {[%clk 0:02:46.5]} 4.
cxd5 {[%clk 0:03:07]} 4... cxd5 {[%clk 0:02:46.5]} 5. Nc3 {[%clk 0:03:08.9]}
5... Nc6 {[%clk 0:02:46.8]} 6. Bf4 {[%clk 0:03:10.5]} 6... e6 {[%clk 0:02:47.5]}
7. e3 {[%clk 0:03:11.6]} 7... Bd6 {[%clk 0:02:47.6]} 8. Bxd6 {[%clk 0:03:12]}
8... Qxd6 {[%clk 0:02:48.7]} 9. Bd3 {[%clk 0:03:13.9]} 9... a6 {[%clk
0:02:49.5]} 10. O-O {[%clk 0:03:15.3]} 10... b5 {[%clk 0:02:50.6]} 11. a4 {[%clk
0:03:13.2]} 11... b4 {[%clk 0:02:51.1]} 12. Nb1 {[%clk 0:03:14.7]} 12... O-O
{[%clk 0:02:50.4]} 13. Nbd2 {[%clk 0:03:16.2]} 13... a5 {[%clk 0:02:47.8]} 14.
Qe2 {[%clk 0:03:16.8]} 14... Nb8 {[%clk 0:02:43.5]} 15. Nb3 {[%clk 0:03:14.4]}
15... Ba6 {[%clk 0:02:41.2]} 16. Rfc1 {[%clk 0:03:15.6]} 16... Bxd3 {[%clk
0:02:41.4]} 17. Qxd3 {[%clk 0:03:17.5]} 17... Nbd7 {[%clk 0:02:41.6]} 18. Rc2
{[%clk 0:03:13.8]} 18... Rfc8 {[%clk 0:02:41.6]} 19. Rac1 {[%clk 0:03:15.2]}
19... Rxc2 {[%clk 0:02:42.1]} 20. Rxc2 {[%clk 0:03:12]} 20... Nb6 {[%clk
0:02:41.1]} 21. Nc5 {[%clk 0:03:11.4]} 21... h6 {[%clk 0:02:29.3]} 22. Ne5
{[%clk 0:03:11.7]} 22... Ne8 {[%clk 0:02:05.4]} 23. h3 {[%clk 0:02:58]} 23... f6
{[%clk 0:02:05]} 24. Ng6 {[%clk 0:02:57.4]} 24... Nd7 {[%clk 0:01:39.4]} 25. Qb5
{[%clk 0:02:47]} 25... Nf8 {[%clk 0:01:36.2]} 26. Nxf8 {[%clk 0:02:44.2]} 26...
Kxf8 {[%clk 0:01:36.4]} 27. Nb7 {[%clk 0:02:31.8]} 27... Qa6 {[%clk 0:00:16.1]}
28. Qxa6 {[%clk 0:02:30.4]} 28... Rxa6 {[%clk 0:00:16.6]} 29. Rc5 {[%clk
0:02:29.2]} 29... Rb6 {[%clk 0:00:16.2]} 30. Nxa5 {[%clk 0:02:28]} 30... b3
{[%clk 0:00:16.9]} 31. Rb5 {[%clk 0:02:27.1]} 31... Ra6 {[%clk 0:00:17.7]} 32.
Kf1 {[%clk 0:02:17.4]} 32... Nd6 {[%clk 0:00:17.5]} 33. Rb8+ {[%clk 0:02:10.9]}
33... Kf7 {[%clk 0:00:18.2]} 34. Nxb3 {[%clk 0:02:11.9]} 34... Rxa4 {[%clk
0:00:17.9]} 35. Nc5 {[%clk 0:02:07.4]} 35... Ra1+ {[%clk 0:00:18.7]} 36. Ke2
{[%clk 0:02:08.6]} 36... Ra2 {[%clk 0:00:18.6]} 37. Kd3 {[%clk 0:02:07.7]} 37...
e5 {[%clk 0:00:18.9]} 38. Rd8 {[%clk 0:01:59.1]} 38... Nc4 {[%clk 0:00:11.6]}
39. b3 {[%clk 0:01:59.7]} 39... e4+ {[%clk 0:00:06.3]} 40. Kc3 {[%clk
0:02:00.9]} 40... Na3 {[%clk 0:00:06.9]} 41. Rxd5 {[%clk 0:01:59.3]} 41... Nb1+
{[%clk 0:00:03.8]} 42. Kb4 {[%clk 0:01:59.3]} 42... Rxf2 {[%clk 0:00:05.3]} 43.
Rd7+ {[%clk 0:01:55.6]} 43... Kg6 {[%clk 0:00:04.4]} 44. Ne6 {[%clk 0:01:51.5]}
44... f5 {[%clk 0:00:02.4]} 45. d5 {[%clk 0:01:49.6]} 45... Kf6 {[%clk
0:00:03.3]} 46. Rxg7 {[%clk 0:01:49.8]} 46... Re2 {[%clk 0:00:02.4]} 47. Rh7
{[%clk 0:01:46.5]} 47... Rxe3 {[%clk 0:00:03.1]} 48. Rxh6+ {[%clk 0:01:48.2]}
48... Ke5 {[%clk 0:00:04.6]} 49. Nc7 {[%clk 0:01:48.2]} 49... Rd3 {[%clk
0:00:04.3]} 50. Re6+ {[%clk 0:01:47.2]} 50... Kf4 {[%clk 0:00:05.6]} 51. d6
{[%clk 0:01:48.7]} 51... e3 {[%clk 0:00:05.4]} 52. Kc4 {[%clk 0:01:48.9]} 52...
Rd2 {[%clk 0:00:01.9]} 53. Nd5+ {[%clk 0:01:50]} 1-0

[Event "*** Titled Tuesday Blitz"]
[Site "Chess.com"]
[Date "2018.06.05"]
[Round "1"]
[White "igorkovalenko"]
[Black "Aleksandr_Kholin"]
[Result "1-0"]
[WhiteElo "2839"]
[BlackElo "2420"]
[TimeControl "180+2"]
[EndTime "13:08:35 PDT"]
[Termination "igorkovalenko won by resignation"]

1. d4 {[%clk 0:02:53.4]} 1... Nf6 {[%clk 0:03:00.2]} 2. Bf4 {[%clk 0:02:53.9]}
2... g6 {[%clk 0:03:01.5]} 3. e3 {[%clk 0:02:55.1]} 3... Bg7 {[%clk 0:03:01.8]}
4. h3 {[%clk 0:02:56.6]} 4... d6 {[%clk 0:03:01.9]} 5. Nf3 {[%clk 0:02:58.2]}
5... O-O {[%clk 0:03:01.3]} 6. Be2 {[%clk 0:03:00.1]} 6... Nfd7 {[%clk
0:02:57.6]} 7. Bh2 {[%clk 0:03:00]} 7... Nc6 {[%clk 0:02:58.8]} 8. Nc3 {[%clk
0:02:59.5]} 8... e5 {[%clk 0:02:59.7]} 9. O-O {[%clk 0:02:59.5]} 9... f5 {[%clk
0:02:51.3]} 10. Bc4+ {[%clk 0:02:59.9]} 10... Kh8 {[%clk 0:02:50.4]} 11. a4
{[%clk 0:02:56.6]} 11... a5 {[%clk 0:02:50.7]} 12. Bb5 {[%clk 0:02:56.8]} 12...
e4 {[%clk 0:02:49.6]} 13. Nd2 {[%clk 0:02:57.7]} 13... Ne7 {[%clk 0:02:40.3]}
14. f3 {[%clk 0:02:46.3]} 14... c6 {[%clk 0:02:34]} 15. Be2 {[%clk 0:02:46.3]}
15... d5 {[%clk 0:02:34.7]} 16. fxe4 {[%clk 0:02:42.7]} 16... dxe4 {[%clk
0:02:35.8]} 17. Nc4 {[%clk 0:02:42.9]} 17... Nb6 {[%clk 0:02:32.6]} 18. Nd6
{[%clk 0:02:29.7]} 18... Ned5 {[%clk 0:02:10.5]} 19. Nxd5 {[%clk 0:02:17.2]}
19... Nxd5 {[%clk 0:02:10]} 20. Qd2 {[%clk 0:02:17.7]} 20... Bh6 {[%clk
0:02:02.3]} 21. Be5+ {[%clk 0:02:18]} 21... Kg8 {[%clk 0:02:01.6]} 22. Ra3
{[%clk 0:02:19.4]} 22... Qg5 {[%clk 0:01:51.3]} 23. Bc4 {[%clk 0:02:15.8]} 23...
Bg7 {[%clk 0:01:47.7]} 24. Bxd5+ {[%clk 0:02:16.5]} 24... cxd5 {[%clk
0:01:48.9]} 25. Rb3 {[%clk 0:02:05.9]} 25... Bxe5 {[%clk 0:01:46.4]} 26. dxe5
{[%clk 0:02:07.2]} 26... Be6 {[%clk 0:01:47.4]} 27. Rxb7 {[%clk 0:02:07.1]}
27... Qg3 {[%clk 0:01:34.1]} 28. Qf2 {[%clk 0:01:33.5]} 28... Qxe5 {[%clk
0:01:33.8]} 29. Qh4 {[%clk 0:01:34.6]} 29... Bf7 {[%clk 0:00:28.7]} 30. Nxf7
{[%clk 0:01:31.9]} 30... Rxf7 {[%clk 0:00:30]} 31. Rxf7 {[%clk 0:01:33.2]} 31...
Kxf7 {[%clk 0:00:31.9]} 32. Qxh7+ {[%clk 0:01:34.7]} 32... Qg7 {[%clk
0:00:33.5]} 33. Qxg7+ {[%clk 0:01:35.6]} 33... Kxg7 {[%clk 0:00:34]} 34. Rd1
{[%clk 0:01:36.7]} 34... Rc8 {[%clk 0:00:33.1]} 35. c3 {[%clk 0:01:37]} 35...
Rb8 {[%clk 0:00:33.9]} 36. Rd2 {[%clk 0:01:36.9]} 36... Kf6 {[%clk 0:00:35]} 37.
h4 {[%clk 0:01:37.5]} 37... Ke5 {[%clk 0:00:36.1]} 38. g3 {[%clk 0:01:39]} 38...
Rg8 {[%clk 0:00:36.2]} 39. Kf2 {[%clk 0:01:39.4]} 39... g5 {[%clk 0:00:37.6]}
40. hxg5 {[%clk 0:01:40]} 40... Rxg5 {[%clk 0:00:39.5]} 41. b4 {[%clk 0:01:41]}
41... Rg7 {[%clk 0:00:35.2]} 42. bxa5 {[%clk 0:01:35.5]} 42... Ra7 {[%clk
0:00:35.9]} 43. Ra2 {[%clk 0:01:29.5]} 43... Rxa5 {[%clk 0:00:36.9]} 44. Kg2
{[%clk 0:01:24.8]} 44... Kd6 {[%clk 0:00:36.3]} 45. Kh3 {[%clk 0:01:24.9]} 45...
Kc5 {[%clk 0:00:37.7]} 46. Kh4 {[%clk 0:01:23.6]} 46... Kc4 {[%clk 0:00:38]} 47.
Kg5 {[%clk 0:01:25]} 47... Kd3 {[%clk 0:00:39.4]} 48. Kf4 {[%clk 0:01:25.8]}
48... Kxc3 {[%clk 0:00:38.1]} 49. Kxf5 {[%clk 0:01:26.5]} 49... Kd3 {[%clk
0:00:38.1]} 50. Kf4 {[%clk 0:01:24]} 50... Kc4 {[%clk 0:00:37]} 51. g4 {[%clk
0:01:23]} 51... Kb3 {[%clk 0:00:30.8]} 52. Rd2 {[%clk 0:01:23.8]} 52... Kc4
{[%clk 0:00:24.5]} 53. g5 {[%clk 0:01:22]} 53... Ra8 {[%clk 0:00:22.3]} 54. g6
{[%clk 0:01:22.8]} 54... Kc5 {[%clk 0:00:22.1]} 55. Ke5 {[%clk 0:01:23.1]} 55...
Re8+ {[%clk 0:00:22.3]} 56. Kf6 {[%clk 0:01:24.6]} 56... Kd6 {[%clk 0:00:23.6]}
57. g7 {[%clk 0:01:25.9]} 1-0